[Event "Polish University-ch Open 2024"]
[Site "Lublin"]
[Date "2024.02.24"]
[Round "5.13"]
[White "Pacan-Milej, Kosma"]
[Black "Drozdowski, Konrad"]
[Result "1-0"]
[ECO "D31"]
[WhiteElo "2438"]
[BlackElo "2117"]
[Annotator "RC"]
[PlyCount "69"]
[EventDate "2024.02.22"]
[EventType "swiss"]
[EventCountry "POL"]
[SourceTitle "playchess.com"]
[Source "ChessBase"]
[SourceQuality "1"]
[TimeControl "600+3"]

1. d4 {[%emt 0:00:01]} d5 {[%emt 0:00:01]} 2. c4 {[%emt 0:00:02]} e6 {[%emt 0:00:01]} 3. Nc3 {[%emt 0:00:03]} a6 {[%emt 0:00:01]} 4. cxd5 {[%emt 0:00:19]} exd5 {[%emt 0:00:02]} 5. Nf3 {[%emt 0:00:03]} c6 {[%emt 0:00:04]} 6. Bf4 {[%emt 0:00:07]} Bd6 {[%emt 0:00:05]} 7. Bxd6 {[%emt 0:00:05]} Qxd6 {[%emt 0:00:02]} 8. e3 {[%emt 0:00:01]} Nf6 {[%emt 0:00:09]} 9. Bd3 {[%emt 0:00:02]} O-O {[%emt 0:00:21]} 10. h3 {[%emt 0:00:02]} Re8 {[%emt 0:01:07]} 11. Qc2 {[%emt 0:00:02]} Nbd7 {[%emt 0:00:08]} 12. O-O {[%emt 0:00:03]} Nf8 {[%emt 0:00:03]} 13. Ne5 {[%emt 0:00:09]} Ng6 {[%emt 0:00:17]} 14. f4 {[%emt 0:00:04]} Nd7 {[%emt 0:01:37]} 15. Qf2 {[%emt 0:00:06]} Qf6 {[%emt 0:00:21]} 16. Ng4 {[%emt 0:00:52]} Qh4 {[%emt 0:00:15]} 17. f5 {[%emt 0:00:04]} Qxf2+ {[%emt 0:00:11]} 18. Kxf2 {[%emt 0:00:58]} Ne7 {[%emt 0:00:13]} 19. Rae1 {[%emt 0:00:35]} h5 {[%emt 0:01:14]} 20. Nh2 {[%emt 0:00:02]} g6 {[%emt 0:00:16]} 21. g4 {[%emt 0:00:16]} gxf5 {[%emt 0:00:10]} 22. gxf5 {[%emt 0:00:50]} Nf6 {[%emt 0:00:07]} 23. Kg3 {[%emt 0:00:09]} Kg7 {[%emt 0:00:35]} 24. Kf4 {[%emt 0:00:28]} Bd7 {[%emt 0:00:31]} 25. Rg1+ {[%emt 0:00:03]} Kh6 {[%emt 0:00:18]} 26. Nf3 {[%emt 0:00:02]} Rg8 {[%emt 0:00:20]} 27. Ne5 {[%emt 0:00:12]} Raf8 {[%emt 0:00:22]} 28. Rxg8 {[%emt 0:00:19]} Nexg8 {[%emt 0:00:06]} 29. Na4 {[%emt 0:00:56]} Ne7 {[%emt 0:01:02]} 30. Nc5 {[%emt 0:00:03]} Bc8 {[%emt 0:00:01]} 31. b4 {[%emt 0:00:05]} h4 {[%emt 0:00:19]} 32. Ng4+ {[%emt 0:00:32]} Kg7 {[%emt 0:00:05]} 33. Rg1 {[%emt 0:00:21]} Nh5+ {[%emt 0:00:32]} 34. Kg5 {[%emt 0:00:28]} Ng3 {[%emt 0:00:41]} 35. f6+ {[%emt 0:00:03]} 1-0

[Event "Polish University-ch Open 2024"]
[Site "Lublin"]
[Date "2024.02.24"]
[Round "5.14"]
[White "Pultorak, Jan"]
[Black "Adamczewski, Jedrzej"]
[Result "1/2-1/2"]
[ECO "A03"]
[WhiteElo "2303"]
[BlackElo "1917"]
[Annotator "TA"]
[PlyCount "43"]
[EventDate "2024.02.22"]
[EventType "swiss"]
[EventCountry "POL"]
[SourceTitle "playchess.com"]
[Source "ChessBase"]
[SourceQuality "1"]
[TimeControl "600+3"]

{[%evp 18,43,-6,-3,-9,-5,-6,-18,0,-8,-10,-15,-9,-13,-8,-35,0,-9,-4,-20,0,0,19,0,0,0,0,0]} 1. b3 {[%emt 0:00:01]} Nf6 {[%emt 0:00:06]} 2. Bb2 {[%emt 0:00:02]} g6 {[%emt 0:00:01]} 3. e3 {[%emt 0:00:08]} Bg7 {[%emt 0:00:01]} 4. f4 {[%emt 0:00:03]} O-O {[%emt 0:00:03]} 5. Nf3 {[%emt 0:00:01]} d5 {[%emt 0:00:01]} 6. Be2 {[%emt 0:00:08]} c5 {[%emt 0:00:02]} 7. O-O {[%emt 0:00:04]} Nc6 {[%emt 0:00:01]} 8. Ne5 {[%emt 0:00:05]} Qc7 {[%emt 0:00:35]} 9. Nxc6 {[%emt 0:01:07]} Qxc6 {[%emt 0:00:08]} 10. Bf3 {[%emt 0:00:01]} b6 {[%emt 0:00:52]} 11. d3 {[%emt 0:01:06]} Bb7 {[%emt 0:00:07]} 12. Nd2 {[%emt 0:00:02]} Rad8 {[%emt 0:00:30]} (12... Ng4 {is more complex.} 13. Bxg7 Nxe3 14. Qe2 Nxf1 15. Bxf8 Nxd2 16. Bxe7 Nxf3+ 17. Qxf3 Qd7) 13. Qe2 {[%emt 0:00:02]} Ne8 {[%emt 0:00:35][%cal Bf6e8,Be8g7,Bg7e6][%mdl 32]} 14. Bxg7 {[%emt 0:00:04]} Nxg7 {[%emt 0:00:02]} 15. Rae1 {[%emt 0:01:18]} Qf6 {[%emt 0:00:18]} 16. c4 {[%emt 0:01:55]} Bc6 {[%emt 0:00:57]} 17. g3 {[%emt 0:00:29] The position is equal.} dxc4 {[%emt 0:01:13]} 18. dxc4 {[%emt 0:00:16]} Bxf3 {[%emt 0:00:25]} 19. Nxf3 {[%emt 0:00:05]} Ne6 {[%emt 0:00:21]} 20. Ne5 {[%emt 0:00:08]} Rd6 {[%emt 0:00:16]} 21. Rd1 {[%emt 0:00:43]} Rfd8 {[%emt 0:00:01] Repels Nd7} 22. Rxd6 {[%emt 0:00:17] Not much happened in this game.   Weighted Error Value: White=0.08 (flawless) /Black=0.09 (flawless) .  Inaccurate:     	White=1     	Black=1      OK:         	White=2     	Black=3} 1/2-1/2

[Event "Polish University-ch Open 2024"]
[Site "Lublin"]
[Date "2024.02.24"]
[Round "5.15"]
[White "Chaczynski, Kamil"]
[Black "Brozyna, Mateusz"]
[Result "1-0"]
[ECO "C84"]
[WhiteElo "2118"]
[BlackElo "2259"]
[Annotator "TA"]
[PlyCount "109"]
[EventDate "2024.02.22"]
[EventType "swiss"]
[EventCountry "POL"]
[SourceTitle "playchess.com"]
[Source "ChessBase"]
[SourceQuality "1"]
[TimeControl "600+3"]

{[%evp 17,109,37,44,17,47,16,35,28,34,0,9,-26,-37,-43,-25,-26,-12,-44,-34,-39,0,-44,-17,-36,-38,-40,-16,-35,17,-7,162,0,53,-5,0,0,0,0,-13,-51,861,837,1801,1760,2073,97,752,733,723,672,733,717,833,847,830,812,839,827,974,963,978,963,962,962,952,938,1221,1193,1378,1228,1634,1661,1628,1608,1503,1581,1609,1503,1461,1231,4134,1415,4133,2709,4022,2722,5097,5089,5069,5069,12847,5627,29989,29990]} 1. e4 {[%emt 0:00:02]} e5 {[%emt 0:00:01]} 2. Nf3 {[%emt 0:00:02]} Nc6 {[%emt 0:00:02]} 3. Bb5 {[%emt 0:00:02]} a6 {[%emt 0:00:01]} 4. Ba4 {[%emt 0:00:01]} Nf6 {[%emt 0:00:02]} 5. d3 {[%emt 0:00:01]} b5 {[%emt 0:00:02]} 6. Bb3 {[%emt 0:00:01]} Be7 {[%emt 0:00:02]} 7. O-O {[%emt 0:00:04]} O-O {[%emt 0:00:09]} 8. a4 {[%emt 0:00:04]} Rb8 {[%emt 0:00:10]} 9. axb5 {[%emt 0:00:05]} axb5 {[%emt 0:00:01]} 10. c3 {[%emt 0:00:10]} d6 {[%emt 0:00:12]} 11. Re1 {[%emt 0:00:09]} h6 {[%emt 0:00:12]} 12. h3 {[%emt 0:00:17] Weiß steht etwas besser.} Re8 {[%emt 0:00:27]} 13. d4 {[%emt 0:00:57]} Bf8 {[%emt 0:00:07]} 14. Be3 {[%emt 0:01:45]} exd4 {[%emt 0:00:22]} (14... Nxe4 15. Bd5 exd4 16. Bxd4 (16. Bxc6 dxe3 17. Rxe3 Nxf2 $14) 16... Nxd4 17. Nxd4 $16) 15. cxd4 {[%emt 0:00:03]} Rxe4 {[%emt 0:00:30]} 16. d5 {[%emt 0:00:45]} Ne5 {[%emt 0:00:30]} 17. Nc3 {[%emt 0:01:16]} Nxf3+ {[%emt 0:00:22]} 18. Qxf3 {[%emt 0:00:30]} Re8 {[%emt 0:00:07]} 19. Ba7 {[%emt 0:01:04]} Ra8 {[%emt 0:00:31]} 20. Bd4 {[%emt 0:00:24]} Bd7 {[%emt 0:00:42]} 21. Rac1 {[%emt 0:00:45]} b4 {[%emt 0:01:37]} 22. Ne2 {[%emt 0:00:08]} Ba4 {[%emt 0:00:56]} (22... Ne4 $15) 23. Bc4 {[%emt 0:00:28]} Qd7 $2 {[%emt 0:00:53]} (23... Ne4 $11) 24. Ng3 $2 {[%emt 0:00:19]} (24. b3 $18 Bb5 25. Bxf6 gxf6 26. Bxb5 Qxb5 27. Nd4 (27. Rxc7 Re5 $14)) 24... Nh7 {[%emt 0:00:32]} (24... Rxe1+ $11 25. Rxe1 Qd8) 25. Nf5 {[%emt 0:00:44]} (25. Rxe8 $1 $14 Qxe8 26. h4) 25... Rxe1+ {[%emt 0:00:05]} 26. Rxe1 {[%emt 0:00:02] Zielt auf Bd3 ab.} Re8 {[%emt 0:00:03]} 27. Rxe8 {[%emt 0:00:27]} Qxe8 {[%emt 0:00:01]} 28. Bd3 {[%emt 0:00:08][%cal Of5h6]} Ng5 $2 {[%emt 0:00:06][%mdl 8192] [#] Jetzt gehts bergab für Schwarz.} (28... Bd7 $15 29. Ne3 Ng5) 29. Nxh6+ $1 $18 {[%emt 0:00:12][%mdl 512]} Kh8 {[%emt 0:00:46]} (29... gxh6 30. Qf6) 30. Qh5 {[%emt 0:00:03][%csl LRf7,LRg5]} f6 {[%emt 0:00:22]} 31. Nf7+ {[%emt 0:00:22]} (31. Bg6 $142 Qxg6 32. Qxg6) 31... Kg8 {[%emt 0:00:01] [#] Und ...Qe1+ würde nun gewinnen.} 32. Bg6 $1 {[%emt 0:00:06][%csl Gf7][%cal Rh5h8]} Qxf7 {[%emt 0:00:55]} 33. Bxf7+ {[%emt 0:00:03]} Nxf7 {[%emt 0:00:01]} 34. Qe2 {[%emt 0:00:05]} c5 {[%emt 0:00:06]} 35. dxc6 {[%emt 0:00:02]} Bxc6 {[%emt 0:00:01]} 36. Qc4 {[%emt 0:00:02]} Bd7 {[%emt 0:00:22]} 37. Qxb4 {[%emt 0:00:02]} Be6 {[%emt 0:00:02]} 38. Qb8 {[%emt 0:00:03]} Bd5 {[%emt 0:00:05]} 39. b4 {[%emt 0:00:02][%cal Bb2b4,Bb4b5,Bb5b6][%mdl 32]} Ng5 {[%emt 0:00:01]} 40. b5 {[%emt 0:00:03]} Ne6 {[%emt 0:00:02]} 41. Be3 {[%emt 0:00:07]} f5 {[%emt 0:00:01]} 42. g3 {[%emt 0:00:05]} g5 {[%emt 0:00:03][%cal Bg7g5,Bg5f4][%mdl 32]} 43. b6 {[%emt 0:00:01] Qe8 ist eine echte Drohung.} f4 {[%emt 0:00:01]} 44. gxf4 {[%emt 0:00:01]} gxf4 {[%emt 0:00:02]} 45. Bd2 {[%emt 0:00:00]} Nd4 {[%emt 0:00:10]} 46. Ba5 {[%emt 0:00:14]} Nf3+ {[%emt 0:00:07]} 47. Kf1 {[%emt 0:00:01]} Bc4+ {[%emt 0:00:02]} 48. Kg2 {[%emt 0:00:00]} Nh4+ {[%emt 0:00:01]} 49. Kg1 {[%emt 0:00:04] Droht stark Kh2.} Nf3+ {[%emt 0:00:03]} 50. Kh1 {[%emt 0:00:03]} Bd5 {[%emt 0:00:03]} 51. Qc7 {[%emt 0:00:05] Schwarz muss nun b7 beachten.} Ne5+ {[%emt 0:00:16]} 52. Kg1 {[%emt 0:00:02]} Nf3+ {[%emt 0:00:01]} 53. Kf1 {[%emt 0:00:02]} Nh2+ {[%emt 0:00:10]} 54. Ke2 {[%emt 0:00:02] jetzt b7 und aus.} f3+ {[%emt 0:00:03]} 55. Ke1 {[%emt 0:00:04] Gewichteter Fehlerwert: Weiß=0.49/Schwarz=0.31.  Verlustzug:     	---       	Schwarz=2     Gewinn verpasst:   	Weiß=1     	---        Fehler:       	Weiß=1     	Schwarz=2     Ungenau:       	Weiß=5     	Schwarz=3     OK:         	Weiß=2     	Schwarz=7     Bester:       	---       	Schwarz=1     Brilliant:      	Weiß=1     	---} 1-0

[Event "Polish University-ch Open 2024"]
[Site "Lublin"]
[Date "2024.02.24"]
[Round "5.16"]
[White "Jankowiak, Tomasz"]
[Black "Redzisz, Michal"]
[Result "0-1"]
[ECO "C42"]
[WhiteElo "2158"]
[BlackElo "2229"]
[Annotator "TA"]
[PlyCount "72"]
[EventDate "2024.02.22"]
[EventType "swiss"]
[EventCountry "POL"]
[SourceTitle "playchess.com"]
[Source "ChessBase"]
[SourceQuality "1"]
[TimeControl "600+3"]

{[%evp 12,71,10,13,13,15,14,10,18,21,38,30,32,30,56,19,31,0,0,-30,-29,-116,-120,-213,-198,-192,-166,-209,-190,-200,-118,-159,-112,-152,-147,-242,-246,-377,-398,-414,-405,-883,-580,-899,-795,-693,-703,-2555,-1514,-29982,-29983,-29983,-29984,-29991,-29971,-29989,-29990,-29990,-29991,-29998,-29999,-29999]} 1. e4 {[%emt 0:00:09]} e5 {[%emt 0:00:01]} 2. Nf3 {[%emt 0:00:03]} Nf6 {[%emt 0:00:01]} 3. Nxe5 {[%emt 0:01:05]} d6 {[%emt 0:00:01]} 4. Nf3 {[%emt 0:00:03]} Nxe4 {[%emt 0:00:02]} 5. c4 {[%emt 0:00:02]} Nc6 {[%emt 0:00:42]} 6. Nc3 {[%emt 0:01:16]} Nxc3 {[%emt 0:00:01]} 7. dxc3 {[%emt 0:00:12]} g6 {[%emt 0:00:01]} 8. Bg5 {[%emt 0:00:39]} Be7 {[%emt 0:00:01]} 9. Bh6 {[%emt 0:00:39]} Bg4 {[%emt 0:00:56] Die Stellung ist ausgeglichen.} 10. Be2 {[%emt 0:00:13]} Qd7 {[%emt 0:01:22]} 11. h3 {[%emt 0:00:01]} Bxf3 {[%emt 0:00:01]} 12. Bxf3 {[%emt 0:00:02]} O-O-O {[%emt 0:00:03]} 13. O-O {[%emt 0:00:45]} Ne5 {[%emt 0:00:45][%cal Of7f5]} 14. Re1 {[%emt 0:00:42]} f5 {[%emt 0:01:07]} 15. Re3 {[%emt 0:04:43]} Bf6 {[%emt 0:00:40][%cal Oc8b8]} 16. Bd5 {[%emt 0:00:04]} (16. Qe2 $11) 16... c6 $17 {[%emt 0:00:06]} 17. f4 {[%emt 0:00:01]} (17. Bf3 $17 {war angesagt.}) 17... cxd5 $19 {[%emt 0:00:02]} 18. fxe5 {[%emt 0:00:01]} dxe5 {[%emt 0:00:08]} 19. Rd3 {[%emt 0:00:08][%cal Rd3d5] [#]} d4 $1 {[%emt 0:00:21]} 20. cxd4 {[%emt 0:00:02]} exd4 {[%emt 0:00:01]} ({Besser ist} 20... e4 $19 21. Rd2 g5 (21... Bxd4+ 22. Kh1 $15)) 21. Bf4 {[%emt 0:00:01]} g5 {[%emt 0:00:17]} (21... Rhe8 $142 22. Bg3 Re4) 22. Bh2 {[%emt 0:00:03]} f4 {[%emt 0:00:09]} 23. Qb3 {[%emt 0:00:01]} (23. Qf3 $17) 23... Rhe8 {[%emt 0:04:24] ...Re2 wäre nun fies.} 24. Rad1 {[%emt 0:00:01]} (24. Qb5 {war einen Versuch wert.}) 24... Re2 {[%emt 0:00:00]} 25. R3d2 {[%emt 0:00:04] Weiss hat schwache schwarze Felder} Re3 {[%emt 0:00:00]} 26. Qc2 {[%emt 0:00:05]} (26. Rd3 $142) 26... Rde8 {[%emt 0:00:00]} 27. Kf1 {[%emt 0:00:03]} f3 {[%emt 0:00:00]} 28. g4 {[%emt 0:00:05] [#]} h5 $1 {[%emt 0:00:00][%mdl 512]} 29. Bg1 {[%emt 0:00:03]} (29. Qf5 Qxf5) 29... Re2 {[%emt 0:00:00]} 30. Qf5 {[%emt 0:00:06]} Qxf5 {[%emt 0:00:00] Schwarz setzt Matt.} 31. gxf5 {[%emt 0:00:01]} g4 {[%emt 0:00:00]} 32. hxg4 {[%emt 0:00:04]} hxg4 {[%emt 0:00:00]} 33. Bxd4 {[%emt 0:00:01]} Bxd4 {[%emt 0:00:00]} 34. Rxd4 {[%emt 0:00:01]} g3 {[%emt 0:00:00]} ({Schwächer ist} 34... Rxb2 35. Rxg4 Rh8 (35... Rxa2 36. f6 $17) 36. Kg1 $17) 35. Kg1 {[%emt 0:00:15]} Re1+ {[%emt 0:00:00]} 36. Rxe1 {[%emt 0:00:01]} Rxe1# {[%emt 0:00:00] Gewichteter Fehlerwert: Weiß=0.87/Schwarz=0.41.  Fehler:       	Weiß=5     	Schwarz=2     Ungenau:       	Weiß=6     	Schwarz=2     OK:         	Weiß=6     	Schwarz=9     Bester:       	---       	Schwarz=2     Stark:        	---       	Schwarz=1} 0-1

[Event "Polish University-ch Open 2024"]
[Site "Lublin"]
[Date "2024.02.24"]
[Round "5.17"]
[White "Dixa, Oskar"]
[Black "Marczuk, Dominik"]
[Result "1/2-1/2"]
[ECO "B34"]
[WhiteElo "2066"]
[BlackElo "2283"]
[Annotator "TA"]
[PlyCount "43"]
[EventDate "2024.02.22"]
[EventType "swiss"]
[EventCountry "POL"]
[SourceTitle "playchess.com"]
[Source "ChessBase"]
[SourceQuality "1"]
[TimeControl "600+3"]

{[%evp 24,43,1,6,33,0,0,-15,27,0,55,59,54,49,106,81,79,0,88,0,80,0]} 1. e4 {[%emt 0:00:05]} c5 {[%emt 0:00:01]} 2. Nf3 {[%emt 0:00:03]} Nc6 {[%emt 0:00:02]} 3. d4 {[%emt 0:00:21]} cxd4 {[%emt 0:00:02]} 4. Nxd4 {[%emt 0:00:01]} g6 {[%emt 0:00:03]} 5. Be3 {[%emt 0:01:06]} Nf6 {[%emt 0:00:17]} 6. Nc3 {[%emt 0:00:20]} Bg7 {[%emt 0:00:05]} 7. Be2 {[%emt 0:00:16]} O-O {[%emt 0:00:04]} 8. O-O {[%emt 0:00:02]} d5 {[%emt 0:00:24]} 9. exd5 {[%emt 0:00:33]} Nxd5 {[%emt 0:00:02]} 10. Nxd5 {[%emt 0:00:31]} Qxd5 {[%emt 0:00:02]} 11. Bf3 {[%emt 0:00:13]} Qc4 {[%emt 0:00:04]} 12. Nxc6 {[%emt 0:00:52]} bxc6 {[%emt 0:00:02]} 13. c3 {[%emt 0:01:24]} Bf5 {[%emt 0:03:38]} 14. Qb3 {[%emt 0:01:05]} Qa6 {[%emt 0:00:38]} 15. a4 {[%emt 0:00:23]} Rfd8 {[%emt 0:01:38] The position is equal.} 16. Qa3 {[%emt 0:00:41]} e6 {[%emt 0:00:14]} (16... e5 $11) 17. Qc5 $14 {[%emt 0:00:35]} Rdc8 {[%emt 0:00:58] Black is weak on the dark squares} 18. b4 {[%emt 0:01:13]} Bf8 {[%emt 0:00:11]} (18... Bd3 $14 19. Rfd1 e5) 19. Qe5 {[%emt 0:00:02]} Bg7 {[%emt 0:00:05] Dodges Bd4} 20. Qc5 {[%emt 0:00:04] White is much more active.} Bf8 $1 {[%emt 0:00:24]} 21. Qe5 {[%emt 0:00:02]} Bg7 {[%emt 0:00:01] Inhibits Bd4.} 22. Qc5 {[%emt 0:00:01] Weighted Error Value: White=0.32/Black=0.18 (very precise) .  Mistake:       	White=1     	Black=2      Inaccurate:     	White=2     	Black=1      OK:         	White=2     	Black=1      Best:        	---       	Black=2      Strong:       	---       	Black=1} (22. Qg3 $16) 1/2-1/2

[Event "Polish University-ch Open 2024"]
[Site "Lublin"]
[Date "2024.02.24"]
[Round "5.18"]
[White "Radecki, Adam"]
[Black "Dzida, Kamil"]
[Result "0-1"]
[ECO "C00"]
[WhiteElo "2064"]
[BlackElo "2403"]
[Annotator "RC"]
[PlyCount "82"]
[EventDate "2024.02.22"]
[EventType "swiss"]
[EventCountry "POL"]
[SourceTitle "playchess.com"]
[Source "ChessBase"]
[SourceQuality "1"]
[TimeControl "600+3"]

1. e4 {[%emt 0:00:02]} c5 {[%emt 0:00:01]} 2. d3 {[%emt 0:00:01]} e6 {[%emt 0:00:16]} 3. Nd2 {[%emt 0:00:02]} d5 {[%emt 0:00:07]} 4. g3 {[%emt 0:00:01]} Bd6 {[%emt 0:00:37]} 5. Bg2 {[%emt 0:00:02]} Ne7 {[%emt 0:00:01]} 6. f4 {[%emt 0:00:29]} Nbc6 {[%emt 0:00:02]} 7. Ngf3 {[%emt 0:00:03]} Bd7 {[%emt 0:00:12]} 8. O-O {[%emt 0:00:03]} f6 {[%emt 0:00:23]} 9. c3 {[%emt 0:00:20]} Qc7 {[%emt 0:00:23]} 10. a3 {[%emt 0:00:38]} O-O {[%emt 0:00:18]} 11. Kh1 {[%emt 0:00:18]} a5 {[%emt 0:00:18]} 12. Qe2 {[%emt 0:00:23]} a4 {[%emt 0:00:27]} 13. Re1 {[%emt 0:00:26]} Qb6 {[%emt 0:00:03]} 14. Nf1 {[%emt 0:01:46]} Rae8 {[%emt 0:00:41]} 15. Be3 {[%emt 0:00:20]} d4 {[%emt 0:00:09]} 16. Bg1 {[%emt 0:00:19]} e5 {[%emt 0:00:06]} 17. f5 {[%emt 0:00:17]} Na5 {[%emt 0:00:19]} 18. c4 {[%emt 0:00:17]} Qa6 {[%emt 0:00:14]} 19. N1d2 {[%emt 0:00:13]} b5 {[%emt 0:00:04]} 20. g4 {[%emt 0:00:14]} bxc4 {[%emt 0:00:09]} 21. dxc4 {[%emt 0:00:11]} Rb8 {[%emt 0:00:05]} 22. Rab1 {[%emt 0:00:02]} g5 {[%emt 0:00:13]} 23. h4 {[%emt 0:00:12]} h6 {[%emt 0:00:01]} 24. Bh2 {[%emt 0:00:15]} Be8 {[%emt 0:00:14]} 25. Rec1 {[%emt 0:00:16]} Bf7 {[%emt 0:00:10]} 26. Bf1 {[%emt 0:00:01]} Nec6 {[%emt 0:00:20]} 27. Qd1 {[%emt 0:00:07]} Nb3 {[%emt 0:00:06]} 28. Nxb3 {[%emt 0:00:24]} Rxb3 {[%emt 0:00:03]} 29. Kg2 {[%emt 0:00:40]} Rfb8 {[%emt 0:00:06]} 30. Qd2 {[%emt 0:00:15]} Be7 {[%emt 0:00:18]} 31. Bd3 {[%emt 0:00:25]} Qb7 {[%emt 0:00:03]} 32. Rc2 {[%emt 0:00:41]} Rxa3 {[%emt 0:00:35]} 33. bxa3 {[%emt 0:00:27]} Qxb1 {[%emt 0:00:02]} 34. hxg5 {[%emt 0:00:15]} hxg5 {[%emt 0:00:02]} 35. Ne1 {[%emt 0:00:02]} Qb3 {[%emt 0:00:14]} 36. Qc1 {[%emt 0:00:55]} Na5 {[%emt 0:00:26]} 37. Bg3 {[%emt 0:00:06]} Qb1 {[%emt 0:00:19]} 38. Qd2 {[%emt 0:00:10]} Nb3 {[%emt 0:00:02]} 39. Qe2 {[%emt 0:00:03]} Nc1 {[%emt 0:00:19]} 40. Qd2 {[%emt 0:00:03]} Nxd3 {[%emt 0:00:49]} 41. Nxd3 {[%emt 0:00:01]} Rb3 {[%emt 0:00:37]} 0-1

[Event "Polish University-ch Open 2024"]
[Site "Lublin"]
[Date "2024.02.24"]
[Round "6.1"]
[White "Psyk, Radoslaw"]
[Black "Kosakowski, Jakub"]
[Result "1/2-1/2"]
[ECO "B13"]
[WhiteElo "2461"]
[BlackElo "2482"]
[Annotator "TA"]
[PlyCount "59"]
[EventDate "2024.02.22"]
[EventType "swiss"]
[EventCountry "POL"]
[SourceTitle "playchess.com"]
[Source "ChessBase"]
[SourceQuality "1"]
[TimeControl "600+3"]

{[%evp 10,59,23,12,17,16,34,30,39,23,45,42,50,37,77,67,78,65,78,18,27,27,116,0,2,0,0,0,0,0,0,0,0,0,0,0,0,-40,-20,-19,-22,-41,0,0,0,0,0,-8,0,-7,-7,-6]} 1. e4 {[%emt 0:00:01]} c6 {[%emt 0:04:44]} 2. d4 {[%emt 0:00:07]} d5 {[%emt 0:00:02]} 3. exd5 {[%emt 0:00:08]} cxd5 {[%emt 0:00:04]} 4. Bd3 {[%emt 0:00:03]} Nc6 {[%emt 0:00:11][%cal Bb8c6,Bc6e5,Be5c4][%mdl 32]} 5. c3 {[%emt 0:00:02]} Qc7 {[%emt 0:00:31]} 6. h3 {[%emt 0:00:18]} e5 {[%emt 0:00:05]} 7. dxe5 {[%emt 0:00:12]} Nxe5 {[%emt 0:00:03]} 8. Bc2 {[%emt 0:00:26][%cal Og1f3]} Bc5 {[%emt 0:01:54] White has an edge.} 9. Nf3 {[%emt 0:00:14]} Ne7 {[%emt 0:00:06]} 10. O-O {[%emt 0:00:40]} O-O {[%emt 0:00:56]} 11. Nbd2 {[%emt 0:02:21][%cal Bb1d2,Bd2b3,Bb3d4][%mdl 32]} Nc4 {[%emt 0:00:58]} 12. Nb3 {[%emt 0:00:22]} Bd6 {[%emt 0:00:15]} 13. Nbd4 {[%emt 0:00:10]} Bd7 {[%emt 0:00:03]} 14. Ng5 {[%emt 0:02:13]} (14. a4 $16) 14... g6 $11 {[%emt 0:00:24]} 15. Re1 {[%emt 0:00:36]} Rfe8 {[%emt 0:00:02] [#]} (15... a6 $11) 16. b3 {[%emt 0:00:23] White is more active.} (16. Qf3 $1 $16 {[%cal Rf3f7]} Bf5 17. g4) 16... Ne5 {[%emt 0:00:06]} 17. Bd2 {[%emt 0:00:25]} a6 {[%emt 0:00:01]} 18. Rc1 {[%emt 0:00:42][%cal Oc3c4]} Ba3 {[%emt 0:00:02]} 19. Rb1 {[%emt 0:00:01] b4 is the strong threat.} Bd6 {[%emt 0:00:01]} 20. Rc1 {[%emt 0:00:04]} Ba3 {[%emt 0:00:01]} 21. Rb1 {[%emt 0:00:01] [#] Threatens to win with b4.} Bd6 {[%emt 0:00:01]} 22. Ngf3 {[%emt 0:00:22]} N7c6 {[%emt 0:00:14]} 23. Nxc6 {[%emt 0:00:18]} Nxf3+ {[%emt 0:00:11]} 24. Qxf3 {[%emt 0:00:01]} Bxc6 {[%emt 0:00:02]} 25. Qg4 {[%emt 0:00:26]} Rxe1+ {[%emt 0:00:09]} 26. Rxe1 {[%emt 0:00:02] The position is equal.} Re8 {[%emt 0:00:01]} 27. Rxe8+ {[%emt 0:00:06]} Bxe8 {[%emt 0:00:01]} 28. Bd3 {[%emt 0:00:21]} Bd7 {[%emt 0:00:09]} 29. Qg5 {[%emt 0:00:03]} Be6 {[%emt 0:00:05]} 30. Qe3 {[%emt 0:00:10] Weighted Error Value: White=0.16 (very precise) /Black=0.11 (very precise) .  Mistake:       	White=2     	Black=1      Inaccurate:     	White=1     	Black=2      OK:         	White=8     	Black=13} 1/2-1/2